fUSD/lending_fUSD_20260617
["ID","MTS","AMOUNT","RATE_DAILY","PERIOD"]
[425308853,1781687444000,-1099.04,0.00028677,7]
[425308856,1781687444000,-509.11,0.00028677,7]
[425308854,1781687444000,-1141.38,0.00028677,7]
[425308855,1781687444000,-5054.18,0.00028677,7]
[425308857,1781687444000,-1110.13,0.00028677,7]
[425308858,1781687444000,-2463.46,0.00028677,7]
[425308859,1781687444000,-5860.65841969,0.0002869,2]
[425308861,1781687444000,-592.27,0.00028726,7]
[425308860,1781687444000,-592.5,0.00028726,7]
[425308862,1781687444000,-592.27,0.00028726,7]
[425308836,1781687444000,-152.0,0.0002857,30]
[425308852,1781687444000,-452.41,0.00028677,7]
[425308834,1781687444000,-500.0,0.00028564,7]
[425308821,1781687444000,-175.0,0.000285,2]
[425308835,1781687444000,-224.00465,0.00028565,2]
[425308864,1781687444000,-592.27,0.00028726,7]
[425308807,1781687444000,-175.0,0.000285,2]
[425308808,1781687444000,-175.0,0.000285,2]
[425308809,1781687444000,-175.0,0.000285,2]
[425308811,1781687444000,-175.0,0.000285,2]
[425308810,1781687444000,-175.0,0.000285,2]
[425308814,1781687444000,-175.0,0.000285,2]
[425308813,1781687444000,-175.0,0.000285,2]
[425308812,1781687444000,-175.0,0.000285,2]
[425308815,1781687444000,-175.0,0.000285,2]
[425308816,1781687444000,-175.0,0.000285,2]
[425308818,1781687444000,-175.0,0.000285,2]
[425308817,1781687444000,-175.0,0.000285,2]
[425308819,1781687444000,-175.0,0.000285,2]
[425308820,1781687444000,-175.0,0.000285,2]
[425308822,1781687444000,-299.0,0.000285,2]
[425308823,1781687444000,-452.41,0.00028516,30]
[425308824,1781687444000,-1141.38,0.00028516,30]
[425308827,1781687444000,-1110.13,0.00028516,30]
[425308826,1781687444000,-509.11,0.00028516,30]
[425308828,1781687444000,-2463.46,0.00028516,30]
[425308825,1781687444000,-5054.18,0.00028516,30]
[425308830,1781687444000,-500.0,0.00028536,2]
[425308829,1781687444000,-500.0,0.00028517,7]
[425308832,1781687444000,-579.61,0.00028564,120]
[425308833,1781687444000,-500.0,0.00028564,7]
[425308831,1781687444000,-579.61,0.00028564,120]
[425308837,1781687444000,-250.0,0.00028575,12]
[425308806,1781687444000,-175.0,0.000285,2]
[425308865,1781687444000,-592.27,0.00028726,7]
[425308867,1781687444000,-592.27,0.00028726,7]
[425308897,1781687444000,-2209.37,0.0002885,7]
[425308900,1781687444000,-579.61,0.00028879,120]
[425308901,1781687444000,-579.61,0.00028879,120]
[425308902,1781687444000,-579.61,0.00028879,120]
[425308903,1781687444000,-579.61,0.00028879,120]
[425308905,1781687444000,-500.0,0.00028879,7]
[425308904,1781687444000,-579.79691616,0.00028879,120]
[425308906,1781687444000,-151.0,0.00028879,7]
[425308907,1781687444000,-151.0,0.00028879,7]
[425308909,1781687444000,-151.0,0.00028879,7]
[425308912,1781687444000,-500.0,0.00028879,2]
[425308911,1781687444000,-500.0,0.00028879,2]
[425308910,1781687444000,-500.0,0.00028879,2]
[425308908,1781687444000,-151.0,0.00028879,7]
[425308914,1781687444000,-500.0,0.00028879,2]
[425308915,1781687444000,-500.0,0.00028879,2]
[425308917,1781687444000,-500.0,0.00028879,2]
[425308918,1781687444000,-500.0,0.00028879,2]
[425308916,1781687444000,-500.0,0.00028879,2]
[425308920,1781687444000,-500.0,0.00028879,2]
[425308919,1781687444000,-500.0,0.00028879,2]
[425308921,1781687444000,-500.0,0.00028879,2]
[425308925,1781687444000,-500.0,0.00028879,2]
[425308923,1781687444000,-500.0,0.00028879,2]
[425308922,1781687444000,-500.0,0.00028879,2]
[425308924,1781687444000,-500.0,0.00028879,2]
[425308866,1781687444000,-592.27,0.00028726,7]
[425308899,1781687444000,-273.0,0.00028862,2]
[425308898,1781687444000,-2209.37,0.0002886,2]
[425308913,1781687444000,-500.0,0.00028879,2]
[425308894,1781687444000,-5054.18,0.00028838,2]
[425308896,1781687444000,-2463.46,0.00028838,2]
[425308869,1781687444000,-592.27,0.00028726,7]
[425308870,1781687444000,-592.27,0.00028726,7]
[425308872,1781687444000,-592.27,0.00028726,7]
[425308871,1781687444000,-592.27,0.00028726,7]
[425308873,1781687444000,-592.27,0.00028726,7]
[425308875,1781687444000,-592.27,0.00028726,7]
[425308874,1781687444000,-592.27,0.00028726,7]
[425308876,1781687444000,-592.27,0.00028726,7]
[425308877,1781687444000,-592.27,0.00028726,7]
[425308879,1781687444000,-592.27,0.00028726,7]
[425308878,1781687444000,-592.27,0.00028726,7]
[425308882,1781687444000,-592.27,0.00028726,7]
[425308880,1781687444000,-592.27,0.00028726,7]
[425308868,1781687444000,-592.27,0.00028726,7]
[425308884,1781687444000,-592.27,0.00028726,7]
[425308881,1781687444000,-592.27,0.00028726,7]
[425308893,1781687444000,-452.41,0.00028838,2]
[425308892,1781687444000,-500.0,0.00028838,7]
[425308891,1781687444000,-3041.92280375,0.0002878,2]
[425308890,1781687444000,-1182.84551567,0.0002878,2]
[425308888,1781687444000,-604.91436295,0.00028766,2]
[425308895,1781687444000,-509.11,0.00028838,2]
[425308886,1781687444000,-592.27,0.00028726,7]
[425308883,1781687444000,-592.27,0.00028726,7]
[425308885,1781687444000,-592.27,0.00028726,7]
[425308887,1781687444000,-224.00465,0.00028765,2]
[425308889,1781687444000,-2209.37,0.00028777,5]
[425308967,1781687445000,-693.686801,0.0002888,7]
[425308965,1781687445000,-389928.0830689,0.0002888,60]
[425308966,1781687445000,-13552.57788016,0.0002888,60]
[425308956,1781687445000,-500.0,0.00028879,2]
[425308963,1781687445000,-500.0,0.00028879,2]
[425308960,1781687445000,-500.0,0.00028879,2]
[425308958,1781687445000,-500.0,0.00028879,2]
[425308959,1781687445000,-500.0,0.00028879,2]
[425308961,1781687445000,-500.0,0.00028879,2]
[425308955,1781687445000,-500.0,0.00028879,2]
[425308968,1781687445000,-693.686801,0.0002888,7]
[425308964,1781687445000,-320.46991081,0.00028879,2]
[425308969,1781687445000,-693.686801,0.0002888,7]
[425308971,1781687445000,-151.0,0.0002888,7]
[425308973,1781687445000,-151.0,0.0002888,7]
[425308975,1781687445000,-151.0,0.0002888,7]
[425308970,1781687445000,-693.686801,0.0002888,7]
[425308972,1781687445000,-151.0,0.0002888,7]
[425308976,1781687445000,-151.0,0.0002888,7]
[425308977,1781687445000,-151.0,0.0002888,7]
[425308979,1781687445000,-991.018136,0.0002888,7]
[425308978,1781687445000,-151.0,0.0002888,7]
[425308981,1781687445000,-991.018136,0.0002888,7]
[425308980,1781687445000,-991.018136,0.0002888,7]
[425308986,1781687445000,-523.857639,0.0002888,7]
[425308985,1781687445000,-523.857639,0.0002888,7]
[425308974,1781687445000,-151.0,0.0002888,7]
[425308957,1781687445000,-500.0,0.00028879,2]
[425308926,1781687445000,-500.0,0.00028879,2]
[425308952,1781687445000,-500.0,0.00028879,2]
[425308927,1781687445000,-500.0,0.00028879,2]
[425308928,1781687445000,-500.0,0.00028879,2]
[425308931,1781687445000,-500.0,0.00028879,2]
[425308930,1781687445000,-500.0,0.00028879,2]
[425308929,1781687445000,-500.0,0.00028879,2]
[425308933,1781687445000,-500.0,0.00028879,2]
[425308934,1781687445000,-500.0,0.00028879,2]
[425308937,1781687445000,-500.0,0.00028879,2]
[425308932,1781687445000,-500.0,0.00028879,2]
[425308935,1781687445000,-500.0,0.00028879,2]
[425308936,1781687445000,-500.0,0.00028879,2]
[425308939,1781687445000,-500.0,0.00028879,2]
[425308938,1781687445000,-500.0,0.00028879,2]
[425308941,1781687445000,-500.0,0.00028879,2]
[425308940,1781687445000,-500.0,0.00028879,2]
[425308942,1781687445000,-500.0,0.00028879,2]
[425308944,1781687445000,-500.0,0.00028879,2]
[425308945,1781687445000,-500.0,0.00028879,2]
[425308946,1781687445000,-500.0,0.00028879,2]
[425308943,1781687445000,-500.0,0.00028879,2]
[425308947,1781687445000,-500.0,0.00028879,2]
[425308948,1781687445000,-500.0,0.00028879,2]
[425308949,1781687445000,-500.0,0.00028879,2]
[425308951,1781687445000,-500.0,0.00028879,2]
[425308950,1781687445000,-500.0,0.00028879,2]
[425308953,1781687445000,-500.0,0.00028879,2]
[425308954,1781687445000,-500.0,0.00028879,2]
[425308962,1781687445000,-500.0,0.00028879,2]
[425308984,1781687445000,-523.857639,0.0002888,7]
[425309012,1781687445000,-43948.15226595,0.000289,2]
[425308983,1781687445000,-523.857639,0.0002888,7]
[425309021,1781687445000,-156.0,0.00028967,30]
[425309019,1781687445000,-572.0,0.00028961,30]
[425309020,1781687445000,-224.00466,0.00028965,2]
[425309023,1781687445000,-155.0,0.00028967,30]
[425309022,1781687445000,-151.0,0.00028967,30]
[425309024,1781687445000,-755.0,0.00028967,30]
[425309025,1781687445000,-2209.37,0.00028967,7]
[425309027,1781687445000,-500.0,0.00028989,7]
[425309026,1781687445000,-40556.52396179,0.0002897,6]
[425309028,1781687445000,-11234.03897222,0.0002899,7]
[425309032,1781687445000,-250.01993717,0.00029,2]
[425309029,1781687445000,-2209.37,0.00028992,5]
[425309017,1781687445000,-158.0,0.00028961,30]
[425309030,1781687445000,-500.0,0.00028999,7]
[425309031,1781687445000,-191.61360357,0.00029,2]
[425309034,1781687445000,-508.0,0.00029,10]
[425309035,1781687445000,-42528.23917717,0.00029,2]
[425309036,1781687445000,-1436.21,0.00029,2]
[425309037,1781687445000,-11218.76700992,0.00029,2]
[425309038,1781687445000,-8126.55888128,0.00029,2]
[425309040,1781687445000,-1503.51031067,0.00029,2]
[425309039,1781687445000,-431.00079052,0.00029,2]
[425309041,1781687445000,-73441.60024618,0.00029,2]
[425309043,1781687445000,-245.77,0.00029,2]
[425309042,1781687445000,-1252.25327799,0.00029,7]
[425308982,1781687445000,-991.018136,0.0002888,7]
[425309033,1781687445000,-376.56336329,0.00029,2]
[425309018,1781687445000,-157.0,0.00028961,30]
[425309044,1781687445000,-568.2,0.00029,2]
[425309016,1781687445000,-335.0,0.00028961,30]
[425308988,1781687445000,-151.0,0.0002888,7]
[425308987,1781687445000,-151.0,0.0002888,7]
[425308991,1781687445000,-575.906456,0.0002888,7]
[425308990,1781687445000,-575.906456,0.0002888,7]
[425308989,1781687445000,-151.0,0.0002888,7]
[425308993,1781687445000,-575.906456,0.0002888,7]
[425308992,1781687445000,-575.906456,0.0002888,7]
[425309015,1781687445000,-168.0,0.00028943,5]
[425308995,1781687445000,-151.0,0.0002888,7]
[425308997,1781687445000,-221.967399,0.0002888,7]
[425308998,1781687445000,-221.967399,0.0002888,7]
[425308999,1781687445000,-221.967399,0.0002888,7]
[425308996,1781687445000,-221.967399,0.0002888,7]
[425308994,1781687445000,-151.0,0.0002888,7]
[425309001,1781687445000,-204.696023,0.0002888,3]
[425309014,1781687445000,-154.81708056,0.0002891,2]
[425309000,1781687445000,-204.696023,0.0002888,3]
[425309013,1781687445000,-340.0,0.000289,2]
[425309011,1781687445000,-10000.0,0.000289,2]
[425309008,1781687445000,-200.0,0.000289,2]
[425309009,1781687445000,-200.0,0.000289,2]
[425309010,1781687445000,-343.0,0.000289,2]
[425309004,1781687445000,-151.0,0.0002888,7]
[425309005,1781687445000,-151.0,0.0002888,7]
[425309007,1781687445000,-197.898922,0.0002888,7]
[425309002,1781687445000,-204.696023,0.0002888,3]
[425309003,1781687445000,-204.696023,0.0002888,3]
[425309006,1781687445000,-151.0,0.0002888,7]
[425309081,1781687446000,-500.0,0.00029,2]
[425309084,1781687446000,-6207.45327006,0.00029,2]
[425309085,1781687446000,-151.0,0.00029,7]
[425309080,1781687446000,-412.0,0.00029,7]
[425309083,1781687446000,-500.0,0.00029,2]
[425309075,1781687446000,-930.0,0.00029,2]
[425309079,1781687446000,-693.686801,0.00029,7]
[425309078,1781687446000,-693.686801,0.00029,7]
[425309077,1781687446000,-693.686801,0.00029,7]
[425309076,1781687446000,-693.686801,0.00029,7]
[425309082,1781687446000,-151.0,0.00029,7]
[425309086,1781687446000,-151.0,0.00029,7]
[425309099,1781687446000,-523.857639,0.00029,7]
[425309089,1781687446000,-151.0,0.00029,7]
[425309093,1781687446000,-211.310373,0.00029,7]
[425309090,1781687446000,-151.0,0.00029,7]
[425309088,1781687446000,-500.0,0.00029,2]
[425309092,1781687446000,-151.0,0.00029,7]
[425309091,1781687446000,-500.0,0.00029,2]
[425309094,1781687446000,-991.018136,0.00029,7]
[425309095,1781687446000,-991.018136,0.00029,7]
[425309097,1781687446000,-991.018136,0.00029,7]
[425309096,1781687446000,-991.018136,0.00029,7]
[425309100,1781687446000,-523.857639,0.00029,7]
[425309073,1781687446000,-888.0,0.00029,2]
[425309087,1781687446000,-254.223901,0.00029,7]
[425309074,1781687446000,-930.0,0.00029,2]
[425309058,1781687446000,-220.0442745,0.00029,2]
[425309072,1781687446000,-666.0,0.00029,2]
[425309098,1781687446000,-523.857639,0.00029,7]
[425309045,1781687446000,-7023.45437318,0.00029,2]
[425309046,1781687446000,-1153.0,0.00029,2]
[425309048,1781687446000,-10068.0,0.00029,2]
[425309047,1781687446000,-1176.0,0.00029,2]
[425309049,1781687446000,-250.1,0.00029,2]
[425309050,1781687446000,-250.0,0.00029,2]
[425309052,1781687446000,-250.14,0.00029,2]
[425309051,1781687446000,-250.14,0.00029,2]
[425309053,1781687446000,-3506.21622823,0.00029,2]
[425309055,1781687446000,-856.57402893,0.00029,2]
[425309054,1781687446000,-1713.14805786,0.00029,2]
[425309071,1781687446000,-4000.0,0.00029,4]
[425309056,1781687446000,-2569.72208679,0.00029,2]
[425309060,1781687446000,-774.06,0.00029,2]
[425309061,1781687446000,-200.0,0.00029,2]
[425309059,1781687446000,-22498.0,0.00029,2]
[425309062,1781687446000,-400.0,0.00029,2]
[425309064,1781687446000,-941.19669631,0.00029,2]
[425309063,1781687446000,-1153.93392614,0.00029,2]
[425309066,1781687446000,-930.02799174,0.00029,2]
[425309065,1781687446000,-930.55983482,0.00029,2]
[425309067,1781687446000,-930.00139959,0.00029,2]
[425309070,1781687446000,-930.00000017,0.00029,2]
[425309068,1781687446000,-930.00006998,0.00029,2]
[425309069,1781687446000,-930.0000035,0.00029,2]
[425309057,1781687446000,-10000.0,0.00029,2]
[425309102,1781687446000,-151.0,0.00029,7]
[425309110,1781687446000,-151.0,0.00029,7]
[425309103,1781687446000,-151.0,0.00029,7]
[425309135,1781687446000,-249.52945176,0.00029109,7]
[425309136,1781687446000,-235.50510015,0.00029109,7]
[425309138,1781687446000,-193.2779557,0.00029109,7]
[425309137,1781687446000,-257.08118914,0.00029109,2]
[425309140,1781687446000,-500.0,0.00029113,60]
[425309139,1781687446000,-214.90048108,0.00029109,7]
[425309144,1781687446000,-275.61500673,0.00029119,7]
[425309142,1781687446000,-279.18327601,0.00029116,7]
[425309143,1781687446000,-213.15490276,0.00029116,7]
[425309141,1781687446000,-202.62900276,0.00029116,7]
[425309147,1781687446000,-289.45452257,0.00029119,7]
[425309145,1781687446000,-295.13602943,0.00029119,7]
[425309133,1781687446000,-406.37731511,0.00029109,7]
[425309146,1781687446000,-283.61778348,0.00029119,7]
[425309150,1781687446000,-281.84438124,0.00029122,7]
[425309151,1781687446000,-227.38575425,0.00029122,7]
[425309149,1781687446000,-218.10456732,0.00029122,7]
[425309153,1781687446000,-249.22485625,0.00029124,7]
[425309154,1781687446000,-202.69981592,0.00029124,7]
[425309101,1781687446000,-523.857639,0.00029,7]
[425309155,1781687446000,-225.79632064,0.00029124,7]
[425309156,1781687446000,-232.01294771,0.00029124,7]
[425309157,1781687446000,-233.0234632,0.00029124,7]
[425309158,1781687446000,-270.85857834,0.00029124,7]
[425309159,1781687446000,-217.74934537,0.00029124,7]
[425309160,1781687446000,-165.71292312,0.00029124,7]
[425309148,1781687446000,-203.95916624,0.00029122,7]
[425309134,1781687446000,-228.60821958,0.00029109,7]
[425309152,1781687446000,-245.6203648,0.00029124,7]
[425309128,1781687446000,-2463.54,0.00029,30]
[425309104,1781687446000,-253.318347,0.00029,7]
[425309132,1781687446000,-214.85452329,0.00029109,7]
[425309105,1781687446000,-575.906456,0.00029,7]
[425309107,1781687446000,-575.906456,0.00029,7]
[425309106,1781687446000,-575.906456,0.00029,7]
[425309113,1781687446000,-6028.35,0.00029,30]
[425309111,1781687446000,-275.934024,0.00029,7]
[425309109,1781687446000,-280.0,0.00029,2]
[425309112,1781687446000,-500.0,0.00029,2]
[425309115,1781687446000,-221.967399,0.00029,7]
[425309114,1781687446000,-500.0,0.00029,2]
[425309117,1781687446000,-221.967399,0.00029,7]
[425309118,1781687446000,-5054.19,0.00029,30]
[425309108,1781687446000,-575.906456,0.00029,7]
[425309120,1781687446000,-204.696023,0.00029,3]
[425309119,1781687446000,-221.967399,0.00029,7]
[425309131,1781687446000,-218.32322346,0.00029109,7]
[425309130,1781687446000,-202.33211592,0.00029109,7]
[425309127,1781687446000,-500.0,0.00029,2]
[425309124,1781687446000,-151.0,0.00029,7]
[425309129,1781687446000,-2209.37,0.00029088,5]
[425309125,1781687446000,-151.0,0.00029,7]
[425309123,1781687446000,-204.696023,0.00029,3]
[425309121,1781687446000,-204.696023,0.00029,3]
[425309116,1781687446000,-221.967399,0.00029,7]
[425309122,1781687446000,-204.696023,0.00029,3]
[425309126,1781687446000,-151.0,0.00029,7]
[425309185,1781687447000,-663.68922148,0.00029129,7]
[425309194,1781687447000,-276.09363638,0.00029134,7]
[425309187,1781687447000,-528.6936479,0.00029133,7]
[425309186,1781687447000,-2209.37,0.00029129,5]
[425309189,1781687447000,-354.45709554,0.00029134,7]
[425309188,1781687447000,-316.63821623,0.00029134,7]
[425309191,1781687447000,-356.20601626,0.00029134,7]
[425309190,1781687447000,-578.54056175,0.00029134,7]
[425309192,1781687447000,-605.20282794,0.00029134,7]
[425309198,1781687447000,-295.02436299,0.00029134,7]
[425309200,1781687447000,-464.83284281,0.00029134,7]
[425309199,1781687447000,-636.37456046,0.00029134,7]
[425309193,1781687447000,-288.36044645,0.00029134,7]
[425309197,1781687447000,-483.46480651,0.00029134,7]
[425309202,1781687447000,-473.37382379,0.00029134,7]
[425309206,1781687447000,-565.13121558,0.00029134,7]
[425309208,1781687447000,-268.3184011,0.00029134,7]
[425309183,1781687447000,-595.90135691,0.00029129,7]
[425309204,1781687447000,-475.00409723,0.00029134,7]
[425309196,1781687447000,-267.81914152,0.00029134,7]
[425309184,1781687447000,-295.21161636,0.00029129,7]
[425309169,1781687447000,-258.11336918,0.00029124,7]
[425309182,1781687447000,-661.74873398,0.00029129,7]
[425309210,1781687447000,-517.05824185,0.00029134,2]
[425309161,1781687447000,-267.34638923,0.00029124,5]
[425309163,1781687447000,-226.39764101,0.00029124,2]
[425309165,1781687447000,-234.21723798,0.00029124,7]
[425309162,1781687447000,-218.69658761,0.00029124,7]
[425309164,1781687447000,-194.47476297,0.00029124,7]
[425309166,1781687447000,-249.41930434,0.00029124,2]
[425309167,1781687447000,-278.9760691,0.00029124,7]
[425309170,1781687447000,-175.04625116,0.00029124,7]
[425309181,1781687447000,-352.21709285,0.00029129,7]
[425309168,1781687447000,-225.43118096,0.00029124,2]
[425309172,1781687447000,-504.95535658,0.00029129,7]
[425309174,1781687447000,-617.20733337,0.00029129,7]
[425309178,1781687447000,-263.11964535,0.00029129,7]
[425309179,1781687447000,-288.69164135,0.00029129,7]
[425309177,1781687447000,-650.10370099,0.00029129,7]
[425309173,1781687447000,-645.25255167,0.00029129,7]
[425309176,1781687447000,-265.15714286,0.00029129,7]
[425309175,1781687447000,-274.25616979,0.00029129,7]
[425309180,1781687447000,-596.15315319,0.00029129,7]
[425309171,1781687447000,-247.29295381,0.00029124,7]
[425309214,1781687447000,-286.52002961,0.00029134,7]
[425309234,1781687447000,-1530.0,0.0002938,30]
[425309212,1781687447000,-295.49476339,0.00029134,5]
[425309245,1781687447000,-2000.0,0.00029575,30]
[425309244,1781687447000,-2000.0,0.00029575,30]
[425309246,1781687447000,-2000.0,0.00029575,30]
[425309248,1781687447000,-3000.0,0.00029589,12]
[425309247,1781687447000,-6119.0887254,0.00029579,2]
[425309249,1781687447000,-597.17105034,0.00029589,12]
[425309250,1781687447000,-1468.92,0.000296,7]
[425309251,1781687447000,-273.0,0.00029612,2]
[425309254,1781687447000,-418.8938871,0.00029677,7]
[425309253,1781687447000,-436.64644692,0.00029677,7]
[425309256,1781687447000,-429.70904658,0.00029677,7]
[425309255,1781687447000,-229.71518198,0.00029677,7]
[425309257,1781687447000,-203.18865755,0.00029677,7]
[425309259,1781687447000,-499.05890353,0.00029677,7]
[425309261,1781687447000,-514.16237828,0.00029677,2]
[425309260,1781687447000,-471.01020031,0.00029677,7]
[425309258,1781687447000,-457.21643915,0.00029677,7]
[425309262,1781687447000,-386.55591139,0.00029677,7]
[425309218,1781687447000,-319.78135943,0.00029146,7]
[425309243,1781687447000,-224.00466,0.00029565,2]
[425309237,1781687447000,-16500.0,0.00029463,7]
[425309252,1781687447000,-404.66423184,0.00029677,7]
[425309242,1781687447000,-5093.0,0.00029543,10]
[425309217,1781687447000,-297.95197213,0.00029146,7]
[425309239,1781687447000,-152.0,0.00029497,5]
[425309216,1781687447000,-290.46704533,0.00029134,7]
[425309219,1781687447000,-651.23406379,0.00029146,7]
[425309221,1781687447000,-464.36110117,0.00029146,7]
[425309220,1781687447000,-646.51000185,0.00029146,7]
[425309224,1781687447000,-224.00465,0.00029165,2]
[425309223,1781687447000,-2209.37,0.00029157,7]
[425309225,1781687447000,-2209.37,0.00029173,2]
[425309228,1781687447000,-523.0,0.00029218,30]
[425309222,1781687447000,-467.81263353,0.00029146,7]
[425309226,1781687447000,-2000.0,0.000292,2]
[425309241,1781687447000,-289.18,0.000295,20]
[425309235,1781687447000,-621.78829552,0.00029396,2]
[425309233,1781687447000,-150.0,0.00029372,2]
[425309231,1781687447000,-2209.37,0.00029306,2]
[425309236,1781687447000,-721.12765534,0.00029396,2]
[425309229,1781687447000,-273.0,0.00029237,2]
[425309230,1781687447000,-203.51,0.000293,20]
[425309227,1781687447000,-183.99,0.00029212,15]
[425309232,1781687447000,-224.00465,0.00029365,2]
[425309299,1781687448000,-201.37116919,0.00029692,7]
[425309291,1781687448000,-451.59264128,0.00029692,7]
[425309292,1781687448000,-464.02589543,0.00029692,7]
[425309293,1781687448000,-466.04692639,0.00029692,7]
[425309294,1781687448000,-311.31878383,0.00029692,7]
[425309295,1781687448000,-541.71715668,0.00029692,7]
[425309298,1781687448000,-331.42584623,0.00029692,7]
[425309297,1781687448000,-435.49869073,0.00029692,7]
[425309296,1781687448000,-245.70421563,0.00029692,7]
[425309300,1781687448000,-534.69277846,0.00029692,5]
[425309301,1781687448000,-516.22673836,0.00029692,7]
[425309310,1781687448000,-450.86236193,0.00029692,2]
[425309302,1781687448000,-437.39317523,0.00029692,7]
[425309304,1781687448000,-222.28804575,0.00029692,7]
[425309305,1781687448000,-178.6763225,0.00029692,2]
[425309306,1781687448000,-468.43447595,0.00029692,7]
[425309309,1781687448000,-557.95213821,0.00029692,7]
[425309308,1781687448000,-498.83860868,0.00029692,2]
[425309307,1781687448000,-410.45976411,0.00029692,7]
[425309312,1781687448000,-160.3876876,0.00029692,7]
[425309313,1781687448000,-491.24072961,0.00029692,7]
[425309290,1781687448000,-426.66196277,0.00029692,7]
[425309303,1781687448000,-452.79528203,0.00029692,2]
[425309288,1781687448000,-405.39963185,0.00029692,7]
[425309266,1781687448000,-405.25800553,0.00029685,7]
[425309287,1781687448000,-226.39028697,0.00029692,7]
[425309265,1781687448000,-429.80096216,0.00029677,7]
[425309264,1781687448000,-436.12197144,0.00029677,7]
[425309263,1781687448000,-371.73294164,0.00029677,7]
[425309267,1781687448000,-558.36655202,0.00029685,7]
[425309314,1781687448000,-388.94952594,0.00029692,7]
[425309268,1781687448000,-427.45002542,0.00029685,7]
[425309270,1781687448000,-551.23001346,0.00029687,7]
[425309269,1781687448000,-426.30980553,0.00029685,7]
[425309271,1781687448000,-590.27205887,0.00029687,7]
[425309273,1781687448000,-578.90904514,0.00029687,7]
[425309276,1781687448000,-159.98959902,0.00029691,2]
[425309289,1781687448000,-165.64447569,0.00029692,7]
[425309272,1781687448000,-567.23556696,0.00029687,7]
[425309274,1781687448000,-304.16737871,0.00029691,7]
[425309277,1781687448000,-407.91833247,0.00029691,7]
[425309278,1781687448000,-436.20913464,0.00029691,7]
[425309279,1781687448000,-232.87883147,0.00029691,7]
[425309281,1781687448000,-233.97262355,0.00029692,7]
[425309280,1781687448000,-563.68876247,0.00029691,7]
[425309284,1781687448000,-165.49040856,0.00029692,2]
[425309283,1781687448000,-247.21875952,0.00029692,7]
[425309282,1781687448000,-377.62593374,0.00029692,7]
[425309285,1781687448000,-174.08276585,0.00029692,7]
[425309286,1781687448000,-498.44971249,0.00029692,7]
[425309275,1781687448000,-159.67155246,0.00029691,7]
[425309316,1781687448000,-350.09250233,0.00029692,7]
[425309324,1781687448000,-530.31428573,0.00029698,7]
[425309320,1781687448000,-673.27380877,0.00029698,7]
[425309350,1781687448000,-590.04872598,0.00029702,7]
[425309352,1781687448000,-619.77712375,0.00029702,7]
[425309351,1781687448000,-848.49941395,0.00029702,7]
[425309353,1781687448000,-631.16509838,0.00029702,7]
[425309356,1781687448000,-536.6368022,0.00029702,7]
[425309355,1781687448000,-753.50828744,0.00029702,7]
[425309354,1781687448000,-633.33879631,0.00029702,7]
[425309358,1781687448000,-590.98952679,0.00029702,5]
[425309357,1781687448000,-689.41098913,0.00029702,2]
[425309360,1781687448000,-580.93409067,0.00029702,7]
[425309359,1781687448000,-573.04005921,0.00029702,7]
[425309362,1781687448000,-868.31208505,0.00029715,7]
[425309315,1781687448000,-151.22218563,0.00029692,7]
[425309363,1781687448000,-862.0133358,0.00029715,7]
[425309364,1781687448000,-619.14813489,0.00029715,7]